[Event "7th Cattolica Open-B 2020"]
[Site "Cattolica"]
[Date "2020.09.01"]
[Round "2.6"]
[White "Ismayilov, Ulvi"]
[Black "Gasperi, Fosco"]
[Result "1-0"]
[ECO "B12"]
[WhiteElo "1713"]
[BlackElo "1878"]
[Annotator "NA RC"]
[PlyCount "61"]
[EventDate "2020.08.31"]
[EventType "swiss"]
[EventCountry "ITA"]
[SourceTitle "playchess.com"]
[Source "ChessBase"]
[SourceQuality "1"]
[TimeControl "5400+30"]

1. e4 {[%emt 0:02:41]} c6 {[%emt 0:00:34]} 2. d4 {[%emt 0:00:08]} d5 {[%emt 0:00:10]} 3. e5 {[%emt 0:00:10]} c5 {[%emt 0:00:35]} 4. c3 {[%emt 0:01:15]} Nc6 {[%emt 0:01:10]} 5. Bb5 {[%emt 0:03:07]} Qb6 {[%emt 0:04:45]} 6. Ba4 {[%emt 0:07:50]} e6 {[%emt 0:07:09]} 7. Nf3 {[%emt 0:04:08]} cxd4 {[%emt 0:01:36]} 8. cxd4 {[%emt 0:00:29]} Bb4+ {[%emt 0:11:23]} 9. Nc3 {[%emt 0:00:57]} Qa6 {[%emt 0:04:20]} 10. a3 {[%emt 0:10:06]} Bxc3+ $1 {[%emt 0:00:48]} 11. bxc3 {[%emt 0:00:05]} Bd7 {[%emt 0:00:34]} 12. Bc2 {[%emt 0:01:16]} Na5 {[%emt 0:00:48]} 13. Rb1 {[%emt 0:03:56]} Rc8 {[%emt 0:04:47]} 14. Bd3 {[%emt 0:04:21]} b5 {[%emt 0:04:43]} (14... Qc6 $1 $14) 15. a4 $16 {[%emt 0:07:00]} Nc4 {[%emt 0:01:14]} 16. axb5 {[%emt 0:00:38]} Bxb5 {[%emt 0:00:17]} 17. O-O {[%emt 0:00:49]} Ne7 {[%emt 0:00:31]} 18. Ng5 {[%emt 0:05:53]} h6 {[%emt 0:16:14]} 19. Qh5 {[%emt 0:05:56]} O-O {[%emt 0:10:25]} 20. Nh7 {[%emt 0:00:43]} Rfd8 {[%emt 0:06:18]} 21. Bxh6 {[%emt 0:03:38]} Nf5 {[%emt 0:10:42]} 22. Bg5 {[%emt 0:03:15]} f6 {[%emt 0:02:31]} 23. exf6 {[%emt 0:02:26]} Be8 {[%emt 0:00:30]} 24. Qh3 {[%emt 0:03:17]} Bg6 {[%emt 0:00:26]} 25. f7+ {[%emt 0:00:25]} Kxf7 {[%emt 0:00:35]} 26. Bxd8 {[%emt 0:00:39]} Rxd8 {[%emt 0:00:09]} 27. Ng5+ {[%emt 0:00:37]} Kf6 {[%emt 0:00:41]} 28. Nf3 {[%emt 0:04:54]} Qc8 {[%emt 0:03:58]} 29. Qg4 {[%emt 0:05:29]} Rh8 {[%emt 0:01:28]} 30. Qg5+ {[%emt 0:00:20]} Kf7 {[%emt 0:00:33]} 31. Bxc4 {[%emt 0:00:30]} 1-0

[Event "7th Cattolica Open-B 2020"]
[Site "Cattolica"]
[Date "2020.09.01"]
[Round "2.7"]
[White "Pizzoferrato, Mattia"]
[Black "Guglielmi, Dante"]
[Result "1/2-1/2"]
[ECO "B03"]
[WhiteElo "1854"]
[BlackElo "1727"]
[Annotator "NA RC"]
[PlyCount "82"]
[EventDate "2020.08.31"]
[EventType "swiss"]
[EventCountry "ITA"]
[SourceTitle "playchess.com"]
[Source "ChessBase"]
[SourceQuality "1"]
[TimeControl "5400+30"]

{[%evp 9,73,32,27,31,75,27,39,36,65,49,51,55,52,23,36,37,38,33,33,35,33,8,39,11,29,8,16,8,15,-13,-4,-2,0,0,9,0,0,-56,-52,-52,-57,-106,-107,-114,-101,-104,-54,-53,-56,-104,-114,-108,-106,-109,-130,-133,-31,-60,-22,-11,-11,12,-28,-91,-8,0]} 1. e4 {[%emt 0:00:00]} Nf6 {[%emt 0:00:00]} 2. e5 {[%emt 0:00:00]} Nd5 {[%emt 1:31:00]} 3. d4 {[%emt 0:00:00]} d6 {[%emt 0:00:00]} 4. c4 {[%emt 0:01:36]} Nb6 {[%emt 0:00:00]} 5. Nf3 {[%emt 0:02:15]} dxe5 {[%emt 0:00:00]} 6. Nxe5 {[%emt 0:00:58] B03: Alekhine's Defence: Four Pawns Attack.} ({Much worse is} 6. dxe5 Qxd1+ 7. Kxd1 Nc6 $17) 6... N8d7 {[%emt 0:00:00]} 7. Nxd7 {[%emt 0:07:20]} Nxd7 {[%emt 0:00:00]} 8. Nc3 {[%emt 0:02:27]} g6 {[%emt 0:00:00] [#]} 9. Be3 $146 {[%emt 0:01:59]} ({Predecessor:} 9. Be2 Bg7 10. O-O O-O 11. Be3 c6 12. Qd2 Nf6 13. Rfe1 Ng4 14. Bxg4 Bxg4 15. Bh6 Qxd4 16. Qxd4 Bxd4 17. Bxf8 Kxf8 {½-½ (56) Just,B (1565)-Malmstroem,J (1901) Chessfriend.com 2004}) 9... Bg7 {[%emt 0:00:00]} 10. Qd2 {[%emt 0:00:20]} O-O {[%emt 0:00:00]} 11. Bh6 {[%emt 0:03:24]} Re8 {[%emt 0:00:00]} 12. Bxg7 {[%emt 0:00:08]} Kxg7 {[%emt 0:00:00]} 13. Be2 {[%emt 0:00:42]} Nf6 {[%emt 0:05:30]} 14. O-O {[%emt 0:01:02]} c6 {[%emt 0:00:00]} 15. Rad1 {[%emt 0:01:05]} Qc7 {[%emt 0:00:00]} 16. Rfe1 {[%emt 0:03:20]} Bg4 {[%emt 0:00:00]} 17. h3 {[%emt 0:02:14]} (17. f3 $5 {[%cal Rf3g4]} Be6 18. b3 $14) 17... Bxe2 {[%emt 0:00:00]} 18. Qxe2 {[%emt 0:01:07]} Rad8 {[%emt 0:00:00]} 19. Ne4 {[%emt 0:03:10]} Nxe4 {[%emt 0:00:00]} 20. Qxe4 {[%emt 0:00:18]} Qb6 {[%emt 0:00:00]} 21. b3 {[%emt 0:01:32]} Rd7 {[%emt 0:00:00]} 22. Rd3 {[%emt 0:02:19]} Qa5 {[%emt 0:00:00]} 23. Qe5+ {[%emt 0:07:22]} ({White should try} 23. a4 $11) 23... Qxe5 {[%emt 0:00:00] Pin} 24. Rxe5 {[%emt 0:00:01]} Red8 {[%emt 0:00:00]} 25. f3 {[%emt 0:03:10]} e6 {[%emt 0:00:00]} 26. Re4 {[%emt 0:03:50] [#]} c5 $1 {[%emt 0:00:00]} 27. d5 {[%emt 0:02:09]} b6 {[%emt 0:00:00]} 28. Re5 {[%emt 0:02:12]} exd5 {[%emt 0:00:00]} 29. Rexd5 {[%emt 0:05:44]} Rxd5 {[%emt 0:00:00]} 30. cxd5 {[%emt 0:00:11]} Kf6 {[%emt 0:00:00]} 31. Kf2 {[%emt 0:01:28]} Rd7 {[%emt 0:00:00]} 32. f4 {[%emt 0:00:36]} Kf5 {[%emt 0:09:30]} (32... b5 $17 33. Kf3 Ke7) 33. Kf3 {[%emt 0:00:11]} h5 {[%emt 0:00:00]} 34. g4+ {[%emt 0:01:18]} hxg4+ {[%emt 0:00:00]} 35. hxg4+ {[%emt 0:00:09]} Kf6 {[%emt 0:00:00]} 36. g5+ {[%emt 0:01:34] [#]} (36. Re3 $11) 36... Kf5 {[%emt 0:00:00]} (36... Ke7 $1 $17) 37. a3 $11 {[%emt 0:05:27]} f6 {[%emt 0:00:00]} 38. gxf6 {[%emt 0:00:42]} Kxf6 {[%emt 0:00:00]} 39. Kg4 {[%emt 0:00:33]} b5 {[%emt 0:00:00]} 40. Rd2 {[%emt 0:01:51]} Rd6 {[%emt 0:00:00]} 41. Rd1 {[%emt 0:01:30]} a6 {[%emt 0:00:00]} 1/2-1/2

[Event "7th Cattolica Open-B 2020"]
[Site "Cattolica"]
[Date "2020.09.01"]
[Round "2.8"]
[White "Saviane, Giorgio"]
[Black "Mammi, Samuele"]
[Result "1-0"]
[ECO "B12"]
[WhiteElo "1643"]
[BlackElo "1847"]
[Annotator "NA RC"]
[PlyCount "123"]
[EventDate "2020.08.31"]
[EventType "swiss"]
[EventCountry "ITA"]
[SourceTitle "playchess.com"]
[Source "ChessBase"]
[SourceQuality "1"]
[TimeControl "5400+30"]

1. e4 {[%emt 0:00:00]} c6 {[%emt 0:00:00]} 2. d4 {[%emt 0:00:40]} d5 {[%emt 0:00:18]} 3. e5 {[%emt 0:01:12]} Bf5 {[%emt 1:31:12]} 4. Be3 {[%emt 0:01:26]} e6 {[%emt 0:00:00]} 5. Nd2 {[%emt 0:00:47]} Nd7 {[%emt 0:00:00]} 6. Be2 {[%emt 0:06:12] B12: Caro-Kann: Advance Variation.} Ne7 {[%emt 0:00:00]} 7. Ngf3 {[%emt 0:00:33]} c5 {[%emt 0:00:00]} 8. c4 {[%emt 0:16:22]} Nc6 {[%emt 0:00:00] [#]} 9. cxd5 $146 {[%emt 0:08:01]} ({Predecessor:} 9. O-O Be7 10. cxd5 exd5 11. dxc5 O-O 12. Nb3 Ndxe5 13. Nxe5 Nxe5 14. Nd4 Bd7 15. Qb3 Bxc5 16. Qxd5 Bxd4 17. Bxd4 {1-0 (45) Grischuk,A (2746)-Roiz,M (2669) Ningbo 2011}) 9... exd5 {[%emt 0:00:00]} 10. Qb3 {[%emt 0:01:08]} Nb4 {[%emt 0:03:30]} (10... c4 $11 {keeps the balance.} 11. Qxb7 Nb4) 11. Rc1 {[%emt 0:02:59]} c4 {[%emt 0:00:00] [#]} (11... Qb6 $14) 12. Nxc4 $1 {[%emt 0:07:15]} dxc4 {[%emt 0:00:00]} 13. Bxc4 {[%emt 0:00:06]} Bg6 $2 {[%emt 0:00:00]} (13... Be6) 14. h4 $2 {[%emt 0:01:59] [#]} (14. Ng5 $18 Qe7 15. a3) 14... Rc8 $2 {[%emt 0:00:00]} (14... b5 $1 $11 {and Black stays safe.} 15. Bxb5 Rb8) 15. h5 {[%emt 0:05:19]} Rxc4 {[%emt 0:00:00]} 16. Rxc4 {[%emt 0:00:27]} ({Don't play} 16. Qxc4 $6 Bd3 $16) 16... Nd3+ {[%emt 0:00:00]} (16... Be4 $142) 17. Ke2 {[%emt 0:01:27]} Bf5 {[%emt 0:00:00]} 18. Nh4 {[%emt 0:43:07]} Bg4+ {[%emt 0:00:00]} 19. f3 {[%emt 0:00:00]} Be6 {[%emt 0:00:00]} 20. Qxd3 {[%emt 0:00:00]} Bxc4 {[%emt 0:00:00]} 21. Qxc4 {[%emt 0:00:00]} Be7 {[%emt 0:00:00]} 22. Nf5 {[%emt 0:00:00]} O-O {[%emt 0:00:00]} 23. Rc1 {[%emt 0:00:00]} g6 {[%emt 0:00:00]} 24. hxg6 {[%emt 0:00:00]} hxg6 {[%emt 0:00:00]} 25. Nh6+ {[%emt 0:00:00]} Kg7 {[%emt 0:00:00]} 26. Ng4 {[%emt 0:00:00]} Rh8 {[%emt 0:00:00]} 27. Qc7 {[%emt 0:00:00]} Qe8 {[%emt 0:00:00]} 28. Qxb7 {[%emt 0:00:00]} Nb6 {[%emt 0:00:00]} 29. Qc6 {[%emt 0:00:00]} Qd8 {[%emt 0:00:00]} 30. a4 {[%emt 0:00:00]} Nd5 {[%emt 0:00:00]} 31. e6 {[%emt 0:00:00]} Nxe3 {[%emt 0:00:00]} 32. Kxe3 {[%emt 0:00:00]} ({Weaker is} 32. Nxe3 Qxd4 33. Qb7 Rd8 $18) 32... f5 {[%emt 0:04:13]} 33. Ne5 {[%emt 0:01:19]} Bg5+ {[%emt 0:00:15]} 34. f4 {[%emt 0:00:36]} Bxf4+ {[%emt 0:00:05]} 35. Kxf4 {[%emt 0:00:21]} Qxd4+ {[%emt 0:00:49]} 36. Kf3 {[%emt 0:00:18]} Qxe5 {[%emt 0:03:15]} 37. Qc7+ {[%emt 0:00:04]} Kf6 {[%emt 0:00:04]} 38. Qxe5+ {[%emt 0:00:09]} Kxe5 {[%emt 0:05:19]} 39. Re1+ {[%emt 0:01:00]} Kf6 {[%emt 0:00:00]} 40. e7 {[%emt 0:00:06]} Re8 {[%emt 0:00:00]} 41. b4 {[%emt 0:00:12]} Rxe7 {[%emt 0:00:00]} 42. Rxe7 {[%emt 0:00:04]} Kxe7 {[%emt 0:02:00]} 43. Kf4 {[%emt 0:00:21]} Kf6 {[%emt 0:00:00]} 44. b5 {[%emt 0:00:11]} g5+ {[%emt 0:00:00]} 45. Ke3 {[%emt 0:00:07]} Ke5 {[%emt 0:01:30]} 46. a5 {[%emt 0:09:12]} g4 {[%emt 0:00:00]} 47. g3 {[%emt 0:00:00]} Kd6 {[%emt 0:00:00]} 48. b6 {[%emt 0:00:00]} axb6 {[%emt 0:00:00]} 49. axb6 {[%emt 0:00:00]} Kc6 {[%emt 0:00:00]} 50. Kf4 {[%emt 0:00:00]} Kxb6 {[%emt 0:00:00]} 51. Kxf5 {[%emt 0:00:00]} Kc6 {[%emt 0:03:00]} 52. Kxg4 {[%emt 0:00:00]} Kd6 {[%emt 0:00:00]} 53. Kh5 {[%emt 0:00:00]} Ke7 {[%emt 0:00:00]} 54. Kh6 {[%emt 0:00:00]} Kf8 {[%emt 0:00:00]} 55. Kh7 {[%emt 0:00:00]} Kf7 {[%emt 0:00:00]} 56. g4 {[%emt 0:00:00]} Kf6 {[%emt 0:00:00]} 57. Kh6 {[%emt 0:00:00]} Kf7 {[%emt 0:00:00]} 58. g5 {[%emt 0:00:00]} Kg8 {[%emt 0:00:00]} 59. Kg6 {[%emt 0:00:00]} Kh8 {[%emt 0:00:00]} 60. Kf7 {[%emt 0:00:00]} Kh7 {[%emt 0:00:00]} 61. g6+ {[%emt 0:00:00]} Kh8 {[%emt 0:00:00]} 62. g7+ {[%emt 0:00:00]} 1-0

[Event "7th Cattolica Open-B 2020"]
[Site "Cattolica"]
[Date "2020.09.01"]
[Round "2.9"]
[White "Tagliaferri, Valerio"]
[Black "Mascia, Leonardo"]
[Result "1-0"]
[ECO "B31"]
[WhiteElo "1777"]
[BlackElo "1585"]
[Annotator "NA RC"]
[PlyCount "66"]
[EventDate "2020.08.31"]
[EventType "swiss"]
[EventCountry "ITA"]
[SourceTitle "playchess.com"]
[Source "ChessBase"]
[SourceQuality "1"]
[TimeControl "5400+30"]

1. e4 {[%emt 0:07:09]} c5 {[%emt 0:00:00]} 2. Nf3 {[%emt 0:00:20]} Nc6 {[%emt 1:31:00]} 3. Bb5 {[%emt 0:00:21]} g6 {[%emt 0:00:00]} 4. c3 {[%emt 1:24:10]} Nf6 {[%emt 0:00:00]} 5. Qe2 {[%emt 0:00:00]} Bg7 {[%emt 0:01:30]} 6. O-O {[%emt 0:00:00]} O-O {[%emt 0:00:00]} 7. d4 {[%emt 0:00:00]} cxd4 {[%emt 0:00:00]} 8. cxd4 {[%emt 0:02:00]} d5 {[%emt 0:01:30]} 9. e5 {[%emt 0:00:00]} Ne4 {[%emt 0:00:30]} 10. h3 {[%emt 0:00:00]} Qb6 {[%emt 0:00:00]} 11. Rd1 {[%emt 0:00:00]} f6 {[%emt 0:01:00]} 12. exf6 {[%emt 0:00:00]} Bxf6 {[%emt 0:00:00]} 13. Be3 {[%emt 0:02:30]} Bd7 {[%emt 0:00:00]} 14. Nc3 {[%emt 0:00:00]} Nxc3 {[%emt 0:00:00]} 15. bxc3 {[%emt 0:01:00]} Rac8 {[%emt 0:00:00]} 16. Rab1 {[%emt 0:00:00]} Qc7 {[%emt 0:00:00]} 17. c4 {[%emt 0:00:00]} e6 {[%emt 0:00:00]} 18. c5 {[%emt 0:01:30]} Ne7 {[%emt 0:00:00]} 19. Bg5 {[%emt 0:00:00]} Nf5 {[%emt 0:00:00]} 20. Bxf6 {[%emt 0:00:00]} Rxf6 {[%emt 0:00:00]} 21. Bxd7 {[%emt 0:00:00]} Qxd7 {[%emt 0:00:00]} 22. Ne5 {[%emt 0:00:00]} Qe7 {[%emt 0:00:00]} 23. Qb5 {[%emt 0:00:00]} Rc7 {[%emt 0:00:00]} 24. Qa4 {[%emt 0:00:00]} b6 {[%emt 0:00:00]} 25. cxb6 {[%emt 0:00:00]} axb6 {[%emt 0:00:00]} 26. Rxb6 {[%emt 0:00:00]} Ra7 {[%emt 0:00:00]} 27. Qb3 {[%emt 0:00:00]} Ra3 {[%emt 0:00:00]} 28. Qb2 {[%emt 0:00:00]} Qa7 {[%emt 0:00:00]} 29. Rd2 {[%emt 0:00:00]} Ra4 {[%emt 0:02:09]} 30. g4 {[%emt 0:00:00]} Ne7 {[%emt 0:02:31]} 31. Rb7 {[%emt 0:00:00]} Qa6 {[%emt 0:04:22]} 32. Rxe7 {[%emt 0:00:00]} Ra3 {[%emt 0:00:01]} 33. Qb7 {[%emt 0:07:30]} Ra4 {[%emt 0:01:57]} 1-0

[Event "7th Cattolica Open-B 2020"]
[Site "Cattolica"]
[Date "2020.09.01"]
[Round "2.10"]
[White "Palozza, Flavio"]
[Black "Giovannini, Roberto"]
[Result "1-0"]
[ECO "B22"]
[WhiteElo "1619"]
[BlackElo "1893"]
[Annotator "NA RC"]
[PlyCount "187"]
[EventDate "2020.08.31"]
[EventType "swiss"]
[EventCountry "ITA"]
[SourceTitle "playchess.com"]
[Source "ChessBase"]
[SourceQuality "1"]
[TimeControl "5400+30"]

{[%evp 12,187,13,-47,32767,32767,32767,32767,32767,32767,32767,83,75,75,223,254,264,202,197,199,187,185,201,215,207,201,201,172,182,165,193,198,238,239,240,245,237,235,223,235,245,229,32767,32767,32767,32767,32767,32767,32767,32767,32767,32767,32767,32767,32767,32767,32767,256,246,32767,32767,32767,32767,32767,32767,32767,32767,32767,32767,32767,32767,32767,32767,409,427,357,464,537,437,430,580,32767,308,32767,32767,32767,32767,32767,32767,32767,32767,32767,32767,32767,32767,32767,32767,247,289,224,377,836,377,266,264,254,297,264,255,250,361,276,270,206,213,252,368,422,393,364,339,377,378,272,358,280,296,348,358,378,391,758,872,7813,1702,7372,12840,29970,29972,29975,29973,0,29974,29966,29972,29969,29973,29973,29974,0,29974,29975,29984,29985,29985,29986,29987,29988,29988,29989,29990,29989,29997,29990,29997,29991,29992,29989,29990,29985,29985,4133,29986,29987,29989,5097,29990,29989]} 1. e4 {[%emt 0:00:00]} c5 {[%emt 0:00:20]} 2. c3 {[%emt 0:00:00]} d5 {[%emt 0:00:07]} 3. exd5 {[%emt 0:00:00]} Qxd5 {[%emt 0:00:10]} 4. d4 {[%emt 0:00:00]} Nf6 {[%emt 0:01:37]} 5. Nf3 {[%emt 0:00:00]} Bg4 {[%emt 0:00:20]} 6. Be2 {[%emt 0:00:00]} e6 {[%emt 0:00:24]} 7. O-O {[%emt 0:00:25]} (7. Kf1 {[%emt 1:33:30]}) 7... cxd4 {[%emt 0:00:46]} 8. cxd4 {[%emt 0:00:09]} Be7 {[%emt 0:00:58]} 9. Nc3 {[%emt 0:00:28]} Qd8 {[%emt 0:00:14] B22: Sicilian: 2 c3.} 10. Qb3 {[%emt 0:02:46]} Qb6 {[%emt 0:01:36]} 11. Qxb6 {[%emt 0:03:20]} axb6 {[%emt 0:00:10]} 12. Bb5+ {[%emt 0:00:16]} Nbd7 $2 {[%emt 0:05:42]} (12... Nc6 $14) 13. Ne5 {[%emt 0:01:36] [#]} Rd8 $146 {[%emt 0:01:15]} ({Predecessor:} 13... Bh5 14. g4 Bg6 15. g5 O-O-O 16. gxf6 Nxf6 17. Be3 Bd6 18. Rac1 Kb8 19. Bg5 h6 20. Nxg6 hxg5 21. Nxh8 Rxh8 {1-0 (55) Homola,U-Grossberger,J Baden 2012}) 14. Bxd7+ {[%emt 0:04:08]} Rxd7 {[%emt 0:00:21]} 15. Nxd7 {[%emt 0:00:18]} Kxd7 {[%emt 1:23:30]} 16. Bg5 {[%emt 0:02:59]} Rc8 {[%emt 0:00:00]} 17. Rac1 {[%emt 0:03:11]} h6 {[%emt 0:00:00]} 18. f3 {[%emt 0:12:03]} Bf5 {[%emt 0:00:00]} 19. Bh4 {[%emt 0:11:34]} g5 {[%emt 0:00:00]} 20. Bg3 {[%emt 0:06:13]} h5 {[%emt 0:00:00]} 21. Be5 {[%emt 0:04:55]} Ne8 {[%emt 0:00:00]} 22. Na4 {[%emt 0:05:42]} Bd8 {[%emt 0:00:00]} 23. Rxc8 {[%emt 0:02:03]} Kxc8 {[%emt 0:00:00]} 24. Nc3 {[%emt 0:03:38]} f6 {[%emt 0:00:00]} 25. Bg3 {[%emt 0:01:29]} Kd7 {[%emt 0:05:00]} 26. f4 {[%emt 0:07:29]} h4 {[%emt 0:00:00]} 27. Bf2 {[%emt 0:00:25]} h3 {[%emt 0:00:00]} 28. fxg5 {[%emt 0:02:44]} fxg5 {[%emt 0:00:00]} 29. Bg3 {[%emt 0:02:16]} Nf6 {[%emt 0:00:00]} 30. gxh3 {[%emt 0:03:54]} Bxh3 {[%emt 0:00:00]} 31. Re1 {[%emt 0:01:30]} Be7 {[%emt 0:00:00]} 32. a3 {[%emt 0:01:14]} Nh5 {[%emt 0:00:00]} 33. b4 {[%emt 0:10:09]} Nf4 {[%emt 0:00:00]} 34. Bxf4 {[%emt 0:04:10]} gxf4 {[%emt 0:00:00]} 35. Re4 {[%emt 0:01:30]} Bg5 {[%emt 0:00:00]} 36. d5 {[%emt 0:02:20]} Kd6 {[%emt 0:00:00]} 37. dxe6 {[%emt 0:00:58]} Bxe6 {[%emt 0:00:00]} 38. Re1 {[%emt 0:01:13]} Bh4 {[%emt 0:00:00]} 39. Re4 {[%emt 0:00:56]} Bg5 {[%emt 0:00:00]} 40. Kf2 {[%emt 0:00:49]} Bf5 {[%emt 0:00:00]} 41. Re8 {[%emt 0:01:40]} Kd7 {[%emt 0:08:00]} 42. Rg8 {[%emt 0:00:00]} Bf6 {[%emt 0:00:00]} 43. Ne2 {[%emt 0:00:00]} Be5 {[%emt 0:00:00]} 44. Rg5 {[%emt 0:00:39]} Ke6 {[%emt 0:00:00]} 45. Kf3 {[%emt 0:00:14]} Kf6 {[%emt 0:00:00]} 46. Rg1 {[%emt 0:00:45]} (46. h4 $142) 46... Bd7 {[%emt 0:00:00]} 47. Nxf4 {[%emt 0:00:20]} Kf5 {[%emt 0:03:00]} 48. Nd3 {[%emt 0:00:47]} Bc6+ {[%emt 0:00:00]} 49. Ke3 {[%emt 0:00:37]} Bxh2 {[%emt 0:00:00]} 50. Rf1+ {[%emt 0:00:10]} Ke6 {[%emt 0:00:00]} 51. Nf4+ {[%emt 0:00:37]} Kd6 {[%emt 0:02:00]} 52. Rd1+ {[%emt 0:00:25]} Ke5 {[%emt 0:00:00]} 53. Nd3+ Ke6 {[%emt 0:01:00]} 54. Kd4 {[%emt 0:01:05]} Kd6 {[%emt 0:00:30]} 55. Re1 {[%emt 0:00:35]} Bb5 $2 {[%emt 0:00:00]} (55... b5 56. Nc5 Bf4 57. Re6+ Kc7) 56. Rh1 {[%emt 0:00:33]} Bg3 {[%emt 0:00:00]} 57. Rh6+ $2 {[%emt 0:00:10]} (57. Rh3 Bxd3 58. Kxd3) 57... Kc7 {[%emt 0:00:00]} 58. Ne5 {[%emt 0:00:48]} Ba4 {[%emt 0:00:33]} 59. Rh7+ {[%emt 0:00:36]} Kb8 {[%emt 0:01:12]} 60. Nc4 {[%emt 0:00:27]} Bb5 {[%emt 0:00:35]} (60... Bc6 $142 61. Rg7 Bf2+ 62. Kd3 Ka7) 61. Nd2 {[%emt 0:00:37]} Bc6 {[%emt 0:00:20]} 62. Kc4 {[%emt 0:00:23]} Bf4 {[%emt 0:00:17]} 63. Nb3 {[%emt 0:00:33]} Bg2 {[%emt 0:00:53]} (63... b5+ $142 64. Kc3 Ka7) 64. Nd4 {[%emt 0:00:28]} Bf1+ {[%emt 0:00:33]} 65. Kb3 {[%emt 0:00:30]} Be3 {[%emt 0:00:05]} 66. Nc2 {[%emt 0:00:30]} Bg5 {[%emt 0:00:22]} 67. a4 {[%emt 0:00:31]} Bd3 {[%emt 0:00:19]} 68. Rg7 {[%emt 0:01:10]} Bf6 {[%emt 0:00:33]} 69. Rf7 {[%emt 0:00:00]} Be5 {[%emt 0:00:35]} 70. Na3 {[%emt 0:00:24]} Bh2 {[%emt 0:01:03]} 71. Nb5 {[%emt 0:01:06]} Bxb5 {[%emt 0:00:29]} 72. axb5 {[%emt 0:00:00]} Be5 {[%emt 0:00:16]} 73. Kc4 {[%emt 0:01:00]} Bg3 {[%emt 0:00:14]} 74. Re7 {[%emt 0:00:30]} Bf4 {[%emt 0:00:41]} 75. Kd5 {[%emt 0:00:00]} Bd2 {[%emt 0:00:42]} 76. Kc4 $2 {[%emt 0:00:13]} (76. Re4 {mates} Kc7 77. Kc4 Kb8 78. Rg4 Be3 79. Kd5 Kc7 80. Ke6 Bh6 81. Ke7) 76... Bf4 $1 {[%emt 0:00:20]} 77. Rh7 {[%emt 0:00:28]} Bd2 {[%emt 0:00:28]} 78. Rg7 {[%emt 0:00:08]} Bh6 $11 {[%emt 0:00:37]} 79. Rf7 {[%emt 0:01:41]} (79. Rg6 Be3) 79... Bd2 {[%emt 0:00:39]} 80. Rg7 $2 {[%emt 0:00:00]} (80. Rf2 {mates} Be1 81. Rf7 Kc8 82. Rf6 Kc7 83. Re6 Bg3 84. Kd5 Kc8 85. Rxb6) 80... Bf4 $2 {[%emt 0:00:17]} 81. Kd5 {[%emt 0:01:00]} Bd2 {[%emt 0:00:08]} 82. Kd6 {[%emt 0:00:00]} Bxb4+ {[%emt 0:00:09] [#]} 83. Kd7 $1 {[%emt 0:00:00]} Bc5 {[%emt 0:00:53]} 84. Rg8+ {[%emt 0:00:04]} Ka7 {[%emt 0:00:10]} 85. Kc8 {[%emt 0:00:08]} Bd4 {[%emt 0:00:30]} 86. Rf8 {[%emt 0:00:06]} Bc5 {[%emt 0:00:36] [#]} 87. Rf7 $1 {[%emt 0:00:04]} Ka8 {[%emt 0:01:21]} 88. Rxb7 {[%emt 0:00:16]} Bd4 {[%emt 0:00:27]} 89. Kc7 {[%emt 0:00:32]} Bc5 {[%emt 0:00:32]} 90. Rxb6 {[%emt 0:01:52]} Bxb6+ {[%emt 0:00:06]} 91. Kxb6 {[%emt 0:00:03]} Kb8 {[%emt 0:00:07] [#]} 92. Ka6 $1 {[%emt 0:00:09]} Ka8 {[%emt 0:00:12]} 93. b6 {[%emt 0:00:06]} Kb8 {[%emt 0:00:58]} 94. b7 {[%emt 0:00:06]} 1-0

[Event "7th Cattolica Open-B 2020"]
[Site "Cattolica"]
[Date "2020.09.02"]
[Round "3.4"]
[White "Pizzoferrato, Mattia"]
[Black "Saviane, Giorgio"]
[Result "0-1"]
[ECO "C50"]
[WhiteElo "1854"]
[BlackElo "1643"]
[Annotator "NA RC"]
[PlyCount "62"]
[EventDate "2020.08.31"]
[EventType "swiss"]
[EventCountry "ITA"]
[SourceTitle "playchess.com"]
[Source "ChessBase"]
[SourceQuality "1"]
[TimeControl "5400+30"]

{[%evp 13,62,-52,-35,-31,-20,32767,32767,32767,32767,-82,-64,-71,-76,-108,-108,-111,-116,-102,-108,-105,32767,32767,32767,32767,32767,-158,-122,-196,-159,-189,-225,32767,32767,32767,32767,32767,32767,32767,32767,-266,-181,-258,-171,32767,32767,32767,32767,-803,-870,-817,-976]} 1. e4 {[%emt 0:00:00]} e5 {[%emt 0:00:00]} 2. Nf3 {[%emt 0:00:00]} Nc6 {[%emt 0:00:01]} 3. Bc4 {[%emt 0:00:00]} Bc5 {[%emt 0:00:52]} 4. O-O {[%emt 0:00:00]} Nf6 {[%emt 0:00:26]} 5. d4 {[%emt 0:00:26]} Bxd4 {[%emt 0:03:09]} 6. Nxd4 {[%emt 0:00:08]} Nxd4 {[%emt 0:00:14] C50: Hungarian Defence and Giuoco Pianissimo.} 7. Be3 {[%emt 0:00:07] 7.Bg5 is the modern continuation.} Nc6 {[%emt 0:00:23]} 8. f4 {[%emt 0:01:26]} Qe7 {[%emt 0:02:08]} 9. Nc3 {[%emt 0:06:23]} exf4 {[%emt 0:06:22]} 10. Rxf4 {[%emt 0:00:14] [#]} d6 $146 {[%emt 0:00:13]} ({Predecessor:} 10... Ne5 11. Bb3 d6 12. h3 Be6 13. Qe2 O-O 14. Raf1 Nfd7 15. Nd5 Bxd5 16. Bxd5 c6 {0-1 (40) Takle,D (2181)-Lie,E (2471) Fagernes 2013}) 11. Qe1 {[%emt 0:11:57]} Ne5 {[%emt 0:17:13]} 12. Nd5 {[%emt 0:08:25]} Nxd5 {[%emt 0:02:28]} 13. Bxd5 {[%emt 0:00:11]} O-O {[%emt 0:10:20]} 14. Qg3 {[%emt 0:03:28]} Be6 {[%emt 0:06:01]} 15. Bd4 {[%emt 0:05:43]} c5 {[%emt 0:19:32]} 16. Bc3 {[%emt 0:02:54]} f6 {[%emt 0:02:14]} 17. Qh3 {[%emt 0:06:12]} Bxd5 {[%emt 0:02:32]} 18. exd5 {[%emt 0:00:24]} Ng6 {[%emt 0:00:35]} 19. Rf5 {[%emt 0:10:56]} Qe4 {[%emt 0:02:14]} 20. Raf1 {[%emt 0:07:22]} (20. Rf2 $17 {might work better.}) 20... Rae8 {[%emt 0:01:53]} 21. R1f2 {[%emt 0:11:00]} b5 {[%emt 0:02:09]} 22. a3 {[%emt 0:02:45]} Qe3 {[%emt 0:05:46]} 23. R5f3 {[%emt 0:01:36]} Qc1+ {[%emt 0:01:29]} 24. Rf1 {[%emt 0:00:01]} Qxc2 {[%emt 0:00:08]} 25. Qd7 {[%emt 0:00:16]} Re2 {[%emt 0:00:30]} 26. Rg3 {[%emt 0:01:32]} (26. R3f2 $17 {was the only defense.}) 26... a6 {[%emt 0:03:07]} 27. h4 {[%emt 0:03:21]} (27. h3 {was necessary.}) 27... Qe4 {[%emt 0:04:51]} 28. h5 {[%emt 0:03:02]} Qh4 {[%emt 0:00:40]} 29. Rh3 {[%emt 0:00:28]} Qg5 {[%emt 0:00:08]} 30. g4 $2 {[%emt 0:02:12] [#]} (30. Rf2 Rxf2 31. Kxf2) 30... Nf4 $1 {[%emt 0:00:54]} 31. Rxf4 {[%emt 0:06:15]} Qxf4 $19 {[%emt 0:00:07]} 0-1